bitfinex/quotes_BTCUSD_20250519
["timestamp","ask_amount","ask_price","bid_price","bid_amount"]
[1747687642554,0.03047774,105340.0,105330.0,0.86183414]
[1747687642755,0.01149261,105340.0,105330.0,0.98317773]
[1747687642972,0.03047774,105340.0,105330.0,0.98317773]
[1747687643685,0.03047774,105340.0,105330.0,0.9546479]
[1747687643893,0.02098495,105340.0,105330.0,0.9546479]
[1747687644140,0.03047774,105340.0,105330.0,0.9546479]
[1747687646041,0.21084707,105340.0,105330.0,0.343]
[1747687646261,0.26904707,105340.0,105330.0,0.343]
[1747687646399,0.26904707,105340.0,105330.0,0.003]
[1747687661905,0.19937321,105330.0,105310.0,0.4351408]
[1747687662119,0.19937321,105330.0,105320.0,0.27974]
[1747687663092,0.20037321,105330.0,105320.0,0.27974]
[1747687663280,0.20137321,105330.0,105320.0,0.28074]
[1747687663493,0.20037321,105330.0,105320.0,0.28074]
[1747687663839,0.20137321,105330.0,105320.0,0.28474]
[1747687664379,0.20137321,105330.0,105320.0,0.272358]
[1747687664578,0.20137321,105330.0,105320.0,0.257207]
[1747687664816,0.20137321,105330.0,105320.0,0.235707]
[1747687666518,0.20137321,105330.0,105320.0,0.24706956]
[1747687667727,0.20137321,105330.0,105320.0,0.43696701]
[1747687668020,0.20137321,105330.0,105320.0,0.24706956]
[1747687670238,0.20137321,105330.0,105320.0,0.46545054]
[1747687670382,0.03997444,105330.0,105320.0,0.52275054]
[1747687670584,0.03048056,105330.0,105320.0,0.53224487]
[1747687671255,0.03997444,105330.0,105320.0,0.52275063]
[1747687671431,0.03997444,105330.0,105320.0,0.5132563]
[1747687671745,0.04946841,105330.0,105320.0,0.52275063]
[1747687672305,0.03997516,105330.0,105320.0,0.5132563]
[1747687672732,0.03997516,105330.0,105320.0,0.52275072]
[1747687672954,0.03997516,105330.0,105320.0,0.53224505]
[1747687674332,0.03997516,105330.0,105320.0,0.87604775]
[1747687674853,0.03997516,105330.0,105320.0,0.86655342]
[1747687675060,0.03048119,105330.0,105320.0,0.87604775]
[1747687675264,0.22985458,105330.0,105320.0,0.857059]
[1747687675849,0.21086727,105330.0,105320.0,0.69545271]
[1747687676067,0.21086727,105330.0,105320.0,0.70494758]
[1747687676239,0.20137339,105330.0,105320.0,0.50555526]
[1747687679334,0.25797339,105330.0,105320.0,0.50555526]
[1747687682060,0.20137339,105330.0,105320.0,0.70494749]
[1747687682680,0.20137339,105330.0,105320.0,0.70494758]
[1747687683083,0.20137339,105330.0,105320.0,0.69545271]
[1747687684499,0.25887339,105330.0,105320.0,0.36016526]
[1747687685813,0.25887339,105330.0,105320.0,0.02016526]
[1747687686027,0.35618279,105330.0,105320.0,0.02016526]
[1747687686935,0.35618279,105330.0,105320.0,0.01637455]
[1747687687144,0.35418279,105330.0,105320.0,0.01137455]
[1747687687550,0.25369214,105320.0,105310.0,0.01516526]
[1747687687750,0.25369214,105320.0,105310.0,0.14006719]
[1747687687951,0.25369214,105320.0,105310.0,0.01530919]
[1747687688756,0.25469214,105320.0,105310.0,0.01730919]
[1747687688976,0.25469214,105320.0,105310.0,0.00214393]
[1747687689207,0.25569214,105320.0,105310.0,0.00214393]
[1747687689561,0.25569214,105320.0,105310.0,0.34214393]
[1747687691819,0.25569214,105320.0,105310.0,0.36657114]
[1747687705181,0.25569214,105320.0,105310.0,0.36409114]
[1747687709412,0.35300154,105320.0,105310.0,0.02409114]
[1747687709610,0.25811107,105310.0,105300.0,0.01716526]
[1747687709810,0.35542047,105310.0,105300.0,0.01716526]
[1747687710423,0.35542047,105310.0,105300.0,0.002]
[1747687710625,0.35542047,105310.0,105300.0,0.003]
[1747687710626,0.35642047,105310.0,105300.0,0.003]
[1747687711241,0.35742047,105310.0,105300.0,0.003]
[1747687712777,0.35742047,105310.0,105300.0,0.02419116]
[1747687712975,0.35742047,105310.0,105300.0,0.003]
[1747687715416,0.35742047,105310.0,105300.0,0.00596537]
[1747687715874,0.35642047,105310.0,105300.0,0.00496537]
[1747687716361,0.01787124,105270.0,105260.0,0.88460469]
[1747687716582,0.01787124,105270.0,105260.0,5.44011875]
[1747687716784,0.01787124,105270.0,105260.0,5.29779875]
[1747687717513,0.01787124,105270.0,105260.0,5.29879875]
[1747687717670,0.01896246,105270.0,105260.0,5.29879875]
[1747687717870,0.02946157,105270.0,105260.0,5.29879875]
[1747687718850,0.03896077,105270.0,105260.0,5.29879875]
[1747687720265,0.22894896,105270.0,105260.0,4.74422736]
[1747687720487,0.22057647,105270.0,105260.0,1.85351115]
[1747687720712,0.21107736,105270.0,105260.0,1.46977315]
[1747687721444,0.21007736,105270.0,105260.0,1.46877315]
[1747687721869,0.21007736,105270.0,105260.0,1.39959615]
[1747687722094,0.21007736,105270.0,105260.0,1.06872415]
[1747687722539,0.21007736,105270.0,105260.0,0.9568739]
[1747687722750,0.21007736,105270.0,105260.0,0.9578739]
[1747687722954,0.21107736,105270.0,105260.0,0.9578739]
[1747687723448,0.26997736,105270.0,105260.0,0.3624669]
[1747687723674,0.26997736,105270.0,105260.0,0.0224669]
[1747687724362,0.26997736,105270.0,105260.0,0.3624669]
[1747687724583,0.26897736,105270.0,105260.0,0.3614669]
[1747687725839,0.26797736,105270.0,105260.0,0.3614669]
[1747687725988,0.26897736,105270.0,105260.0,0.3624669]
[1747687726218,0.26997736,105270.0,105260.0,0.3624669]
[1747687727467,0.21107736,105270.0,105260.0,0.8925019]
[1747687727656,0.21107736,105270.0,105260.0,1.16100789]
[1747687727657,0.03058873,105270.0,105260.0,1.16100789]
[1747687727933,0.00209122,105270.0,105260.0,1.29185753]
[1747687728158,0.02108881,105270.0,105260.0,1.29185753]
[1747687728378,0.02108872,105270.0,105260.0,1.29185753]
[1747687728596,0.00209122,105270.0,105260.0,1.29185753]
[1747687732872,0.01158997,105270.0,105260.0,1.29185753]
[1747687733088,0.01158997,105270.0,105260.0,1.62241753]
[1747687733089,0.0305881,105270.0,105260.0,1.62241753]
[1747687733293,0.0210889,105270.0,105260.0,1.62241753]
[1747687733698,0.0210889,105270.0,105260.0,1.60095063]
[1747687733920,0.0305881,105270.0,105260.0,1.45859063]
[1747687734167,0.04008721,105270.0,105260.0,1.60095063]
[1747687734768,0.03058801,105270.0,105260.0,1.60095063]
[1747687734990,0.04008721,105270.0,105260.0,1.60095063]
[1747687735241,0.21107736,105270.0,105260.0,0.94867525]
[1747687735472,0.26877736,105270.0,105260.0,0.65719685]
[1747687735690,0.26877736,105270.0,105260.0,0.341]
[1747687736568,0.26877736,105270.0,105260.0,0.525531]
[1747687737331,0.26877736,105270.0,105260.0,0.341]
[1747687739075,0.26877736,105270.0,105260.0,0.147706]
[1747687739439,0.26877736,105270.0,105260.0,0.124108]
[1747687739833,0.26877736,105270.0,105260.0,0.464108]
[1747687740321,0.26877736,105270.0,105260.0,0.341]
[1747687741500,0.26877736,105270.0,105260.0,0.501508]
[1747687744455,0.21107736,105270.0,105260.0,0.501508]
[1747687745077,0.02108971,105270.0,105260.0,0.71051381]
[1747687745273,0.21107736,105270.0,105260.0,0.72811389]
[1747687745508,0.21107736,105270.0,105260.0,0.73761381]
[1747687745731,0.01158997,105270.0,105260.0,0.88596371]
[1747687745938,0.01158988,105270.0,105260.0,0.88596371]
[1747687746552,0.00209122,105270.0,105260.0,0.88596371]
[1747687746954,0.01158979,105270.0,105260.0,0.91235883]
[1747687747274,0.00209122,105270.0,105260.0,0.88596371]
[1747687747582,0.00209122,105270.0,105260.0,0.91236531]
[1747687750635,0.002,105290.0,105260.0,0.88386555]
[1747687750834,0.03049109,105290.0,105280.0,0.23300479]
[1747687751034,0.04948614,105290.0,105280.0,0.94877337]
[1747687751693,0.22994094,105290.0,105280.0,0.93927544]
[1747687751930,0.22994094,105290.0,105280.0,0.94877355]
[1747687752084,0.22994094,105290.0,105280.0,0.95827157]
[1747687752281,0.04098938,105290.0,105280.0,0.95827157]
[1747687752508,0.03149181,105290.0,105280.0,0.98291425]
[1747687752707,0.23094094,105290.0,105280.0,0.91268446]
[1747687752916,0.28754094,105290.0,105280.0,0.66387748]
[1747687753143,0.28754094,105290.0,105280.0,0.65437946]
[1747687753983,0.28754094,105290.0,105280.0,0.66387748]
[1747687754150,0.28854094,105290.0,105280.0,0.66487748]
[1747687754912,0.27904391,105290.0,105280.0,0.67623369]
[1747687755084,0.26954661,105290.0,105280.0,0.66673613]
[1747687755910,0.26004913,105290.0,105280.0,0.67623433]
[1747687757227,0.25055156,105290.0,105280.0,0.22902251]
[1747687757903,0.25055156,105290.0,105280.0,0.56902251]
[1747687758921,0.25055156,105290.0,105280.0,0.55387721]
[1747687761861,0.25055156,105290.0,105280.0,0.32034223]
[1747687772032,0.26748578,105270.0,105260.0,0.54390628]
[1747687772236,0.26748578,105270.0,105260.0,0.35562628]
[1747687772440,0.26748578,105270.0,105260.0,0.5279934]
[1747687772646,0.01899759,105270.0,105260.0,0.87090381]
[1747687772850,0.00949811,105280.0,105270.0,0.54898596]
[1747687773047,0.03799208,105280.0,105270.0,2.34521955]
[1747687773282,0.03799199,105280.0,105270.0,2.34521955]
[1747687773485,0.04749028,105280.0,105270.0,2.34521964]
[1747687773887,0.24935156,105290.0,105270.0,2.34521964]
[1747687773888,0.25784913,105290.0,105270.0,2.4330293]
[1747687774091,0.01999595,105280.0,105270.0,0.91681415]
[1747687774302,0.01999595,105280.0,105270.0,4.97693272]
[1747687774541,0.001,105280.0,105270.0,4.97693272]
[1747687774795,0.002,105280.0,105270.0,4.97793272]
[1747687775694,0.001,105280.0,105270.0,4.97693272]
[1747687776162,0.001,105280.0,105270.0,4.97793272]
[1747687776538,0.001,105280.0,105270.0,4.97693272]
[1747687776744,0.002,105280.0,105270.0,4.97793272]
[1747687777297,0.002,105280.0,105270.0,4.97553272]
[1747687781206,0.002,105280.0,105270.0,4.78725272]
[1747687781413,0.002,105290.0,105280.0,0.23300479]
[1747687781615,0.06619514,105310.0,105300.0,0.5729633]
[1747687781833,0.002,105310.0,105300.0,2.2954417]
[1747687782052,0.002,105310.0,105300.0,2.4378017]
[1747687782260,0.01149505,105310.0,105300.0,2.49122716]
[1747687782491,0.002,105310.0,105300.0,2.49122716]
[1747687782904,0.00214431,105310.0,105300.0,2.49122716]
[1747687783321,0.00514431,105310.0,105300.0,2.49122716]
[1747687783525,0.00814431,105310.0,105300.0,2.49222716]
[1747687783729,0.00514431,105310.0,105300.0,2.49122716]
[1747687784092,0.00614431,105310.0,105300.0,2.49222716]
[1747687784292,0.00614431,105310.0,105300.0,2.49122716]
[1747687784493,0.00314431,105310.0,105300.0,2.49122716]
[1747687784696,0.00414431,105310.0,105300.0,2.49222716]
[1747687784903,0.00514431,105310.0,105300.0,2.49422716]
[1747687786353,0.002,105320.0,105310.0,0.61490171]
[1747687786556,0.002,105320.0,105310.0,4.99890811]
[1747687786754,0.002,105320.0,105310.0,5.01344896]
[1747687787584,0.002,105320.0,105310.0,5.05135011]
[1747687787821,0.003,105320.0,105310.0,5.05235011]
[1747687788078,0.30539666,105350.0,105340.0,0.57288035]
[1747687788079,0.01149135,105350.0,105340.0,0.57288035]
[1747687788287,0.01774726,105350.0,105340.0,4.89988675]
[1747687788504,0.01912716,105350.0,105340.0,4.68364675]
[1747687788705,0.00014428,105350.0,105340.0,4.68364675]
[1747687788917,0.00014428,105350.0,105340.0,4.71194675]
[1747687789128,0.00014428,105350.0,105340.0,4.74014675]
[1747687790002,0.002,105370.0,105360.0,0.23283891]
[1747687790212,0.002,105370.0,105360.0,5.17358531]
[1747687790652,0.0599,105390.0,105380.0,0.35454085]
[1747687790862,0.02112038,105390.0,105380.0,4.30411188]
[1747687791085,0.00214425,105390.0,105380.0,4.10751188]
[1747687791296,0.02112002,105390.0,105380.0,3.56893188]
[1747687792215,0.02312002,105390.0,105380.0,3.56893188]
[1747687792394,0.03260822,105390.0,105380.0,3.56893188]
[1747687792544,0.02312002,105390.0,105380.0,3.56893188]
[1747687792746,0.03260822,105390.0,105380.0,3.56893188]
[1747687792943,0.02312002,105390.0,105380.0,3.56893188]
[1747687793214,0.02412002,105390.0,105380.0,3.56893188]
[1747687793465,0.03360822,105390.0,105380.0,3.59589997]
[1747687793645,0.02412002,105390.0,105380.0,3.59589997]
[1747687793870,0.03360822,105390.0,105380.0,3.56893188]
[1747687794275,0.03360822,105390.0,105380.0,2.85881688]
[1747687794675,0.03360822,105390.0,105380.0,2.59779288]
[1747687794895,0.04309651,105390.0,105380.0,2.51260205]
[1747687795080,0.05258489,105390.0,105380.0,2.53641493]
[1747687795302,0.04309651,105390.0,105380.0,2.54590376]
[1747687795482,0.04309651,105390.0,105380.0,2.53641493]
[1747687795709,0.04309732,105390.0,105380.0,2.53641493]
[1747687795898,0.22338062,105390.0,105380.0,2.52692601]
[1747687796374,0.22338062,105390.0,105380.0,2.53641502]
[1747687798559,0.22338062,105390.0,105380.0,2.5269261]
[1747687799160,0.22338062,105390.0,105380.0,2.1501011]
[1747687799361,0.26010413,105390.0,105380.0,0.20248396]
[1747687799568,0.26010413,105390.0,105380.0,0.01432396]
[1747687799782,0.26010413,105390.0,105380.0,0.17055696]
[1747687799984,0.26010413,105390.0,105380.0,0.156233]
[1747687800186,0.25497861,105380.0,105370.0,0.75478085]
[1747687800389,0.25497861,105380.0,105370.0,1.52385161]
[1747687800623,0.25497861,105380.0,105370.0,1.42526061]
[1747687800831,0.25497861,105380.0,105370.0,1.00251225]
[1747687800973,0.25497861,105380.0,105370.0,0.67211225]
[1747687801185,0.25497861,105380.0,105370.0,0.40984]
[1747687801391,0.25497861,105380.0,105350.0,0.21830373]
[1747687801392,0.22778905,105360.0,105350.0,0.55830391]
[1747687801614,0.22578905,105360.0,105350.0,4.07637978]
[1747687801816,0.03596369,105360.0,105350.0,3.60371046]
[1747687802038,0.03596369,105360.0,105350.0,3.30565493]
[1747687802192,0.03596369,105360.0,105350.0,3.32019578]
[1747687802569,0.02647243,105360.0,105350.0,3.3296874]
[1747687802771,0.02647243,105360.0,105350.0,3.34374932]
[1747687803365,0.03596369,105360.0,105350.0,3.32790732]
[1747687803570,0.03796369,105360.0,105350.0,3.33590732]
[1747687803774,0.03696369,105360.0,105350.0,3.33190732]
[1747687803977,0.03596369,105360.0,105350.0,3.32790732]
[1747687804185,0.02747243,105360.0,105350.0,3.32990732]
[1747687804362,0.02098135,105360.0,105350.0,3.33190732]
[1747687804571,0.03047234,105360.0,105350.0,3.33190732]
[1747687806660,0.03047225,105360.0,105350.0,3.33190732]
[1747687807502,0.02098126,105360.0,105350.0,3.33190732]
[1747687807840,0.01149054,105360.0,105350.0,3.33190732]
[1747687808055,0.02098126,105360.0,105350.0,3.33190732]
[1747687809075,0.002,105360.0,105350.0,3.33190732]
[1747687809275,0.19191557,105390.0,105350.0,3.33190732]
[1747687809276,0.04812074,105390.0,105380.0,0.35897847]
[1747687809477,0.0481202,105390.0,105380.0,2.57010163]
[1747687809955,0.02914425,105390.0,105380.0,2.58464248]
[1747687810271,0.01163218,105390.0,105380.0,2.82419188]
[1747687810594,0.01563218,105390.0,105380.0,2.82519188]
[1747687810814,0.00914425,105390.0,105380.0,2.82619188]
[1747687811390,0.00914425,105390.0,105380.0,2.85315997]
[1747687811514,0.00914425,105390.0,105380.0,2.82619188]
[1747687811721,0.00914425,105390.0,105380.0,3.29253188]
[1747687812170,1e-08,105390.0,105380.0,3.29253188]
[1747687812548,0.02097217,105410.0,105400.0,0.55821522]
[1747687812750,0.02097217,105410.0,105400.0,4.24523807]
[1747687812751,0.02097208,105410.0,105400.0,4.24523807]
[1747687812956,0.02097208,105410.0,105400.0,2.70510156]
[1747687813264,0.002,105410.0,105400.0,2.67813347]
[1747687813466,0.002,105410.0,105400.0,2.70510156]
[1747687813664,0.002,105410.0,105400.0,2.67813347]
[1747687814091,0.01548595,105410.0,105400.0,2.70610156]
[1747687814292,0.03045848,105410.0,105400.0,2.67813347]
[1747687814513,0.03545848,105410.0,105400.0,2.67913347]
[1747687814718,0.02597208,105410.0,105400.0,2.67913347]
[1747687814834,0.07264542,105410.0,105400.0,1.18758401]
[1747687815035,0.07264524,105410.0,105400.0,1.20655834]
[1747687815238,0.08213191,105410.0,105400.0,1.20655843]
[1747687815438,0.08213272,105410.0,105400.0,1.19707131]
[1747687815689,0.07713272,105410.0,105400.0,1.20555852]
[1747687815906,0.07164596,105410.0,105400.0,1.20555798]
[1747687816665,0.07164596,105410.0,105400.0,1.24352258]
[1747687816959,0.05267217,105410.0,105400.0,1.24352258]
[1747687817198,0.05267208,105410.0,105400.0,1.24352258]
[1747687817403,0.006,105410.0,105400.0,1.24352258]
[1747687818189,0.01548595,105410.0,105400.0,1.25857847]
[1747687818624,0.2221946,105410.0,105400.0,0.87894206]
[1747687818830,0.2499946,105410.0,105400.0,0.88842963]
[1747687819022,0.2499946,105410.0,105400.0,1.23107684]
[1747687819227,0.06774596,105410.0,105400.0,1.25005126]
[1747687819371,0.06774596,105410.0,105400.0,1.25953829]
[1747687819573,0.06774596,105410.0,105400.0,1.26053829]
[1747687819807,0.02097217,105410.0,105400.0,1.26053829]
[1747687820002,0.03045866,105410.0,105400.0,1.26053829]
[1747687820200,0.02097217,105410.0,105400.0,1.26053829]
[1747687820404,0.03045857,105410.0,105400.0,1.26053829]
[1747687820765,0.03994506,105410.0,105400.0,1.26053829]
[1747687821319,0.04943164,105410.0,105400.0,1.26053829]
[1747687823797,0.03994506,105410.0,105400.0,1.22257369]
[1747687824115,0.04943164,105410.0,105400.0,1.22257369]
[1747687824687,0.03994569,105410.0,105400.0,1.22257369]
[1747687825597,0.03994569,105410.0,105400.0,1.23388253]
[1747687825771,0.03045911,105410.0,105400.0,1.23388253]
[1747687828253,0.03045911,105410.0,105400.0,1.21882664]
[1747687829265,0.26790838,105410.0,105400.0,0.53762684]
[1747687829497,0.26790838,105410.0,105400.0,0.72754684]
[1747687830632,0.26790838,105410.0,105400.0,0.716238]
[1747687832762,0.26790838,105410.0,105400.0,0.526318]
[1747687832959,0.26790838,105410.0,105400.0,0.72572566]
[1747687833463,0.26790838,105410.0,105400.0,0.53580566]
[1747687833665,0.26790838,105410.0,105400.0,0.72572566]
[1747687834565,0.26790838,105410.0,105400.0,0.92496646]
[1747687835129,0.26790838,105410.0,105400.0,0.9362753]
[1747687835647,0.25842189,105410.0,105400.0,0.72754684]
[1747687836021,0.25842189,105410.0,105400.0,0.7370345]
[1747687840802,0.25842189,105410.0,105400.0,0.74078155]
[1747687841589,0.25842189,105410.0,105400.0,0.73830155]
[1747687843058,0.24893531,105410.0,105400.0,0.72881389]
[1747687844635,0.24893531,105410.0,105400.0,0.53889389]
[1747687844840,0.24893531,105410.0,105400.0,0.01705589]
[1747687845054,0.34624471,105410.0,105400.0,0.01705589]
[1747687845416,0.67062748,105410.0,105400.0,0.01705589]
[1747687845858,0.67062748,105410.0,105400.0,0.01605589]
[1747687846041,0.67062748,105410.0,105400.0,0.01505589]
[1747687846267,0.67462748,105410.0,105400.0,0.01505589]
[1747687846683,0.67462748,105410.0,105370.0,0.54203776]
[1747687846684,0.2657678,105380.0,105370.0,0.54203776]
[1747687846897,0.2657678,105380.0,105370.0,0.54218201]
[1747687847118,0.2657678,105380.0,105370.0,0.01150201]
[1747687847326,0.3630772,105380.0,105370.0,0.01150201]
[1747687847940,0.3640772,105380.0,105370.0,0.01450201]
[1747687848936,0.3640772,105380.0,105370.0,0.00314425]
[1747687849311,0.3650772,105380.0,105370.0,0.00714425]
[1747687849737,0.68945997,105380.0,105370.0,0.00714425]
[1747687850126,0.3650772,105380.0,105370.0,0.00714425]
[1747687850659,0.3630772,105380.0,105370.0,0.00014425]
[1747687850819,0.3630772,105380.0,105370.0,0.00314425]
[1747687851025,0.3640772,105380.0,105370.0,0.00514425]
[1747687851248,0.68845997,105380.0,105370.0,0.00514425]
[1747687853579,0.3640772,105380.0,105370.0,0.00514425]
[1747687855232,0.2667678,105380.0,105370.0,0.00514425]
[1747687855637,0.18982536,105360.0,105350.0,0.19072]
[1747687855859,0.25019845,105360.0,105350.0,0.19072]
[1747687856062,0.18984337,105350.0,105340.0,0.01638688]
[1747687856280,0.18984337,105350.0,105340.0,0.46875388]
[1747687856995,0.18984337,105350.0,105340.0,0.37110288]
[1747687857431,0.18484337,105350.0,105340.0,0.37110288]
[1747687857877,0.18584337,105350.0,105340.0,0.37810288]
[1747687858320,0.18284337,105350.0,105340.0,0.37810288]
[1747687858786,0.18284337,105350.0,105340.0,0.71810288]
[1747687859229,0.18384337,105350.0,105340.0,0.72110288]
[1747687863510,0.18384337,105350.0,105340.0,0.21710688]
[1747687863786,0.18384337,105350.0,105340.0,0.68626488]
[1747687864228,0.18284337,105350.0,105340.0,0.67926488]
[1747687864453,0.18184337,105350.0,105340.0,0.67626488]
[1747687864592,0.18284337,105350.0,105340.0,0.67726488]
[1747687865075,0.18384337,105350.0,105340.0,0.67926488]
[1747687865697,0.18384337,105350.0,105340.0,0.48854488]
[1747687865894,0.002,105350.0,105340.0,1.06937463]
[1747687866126,0.02098306,105350.0,105340.0,1.21165463]
[1747687866274,0.002,105350.0,105340.0,1.21165463]
[1747687867124,0.002,105350.0,105340.0,1.22301239]
[1747687867681,0.01149153,105350.0,105340.0,1.22301239]
[1747687868297,0.01149144,105350.0,105340.0,1.22301239]
[1747687868732,0.002,105350.0,105340.0,1.22301239]
[1747687869839,0.002,105350.0,105340.0,1.22671052]
[1747687872777,0.002,105350.0,105340.0,1.21165463]
[1747687874423,0.01149153,105350.0,105340.0,1.06937463]
[1747687874630,0.002,105350.0,105340.0,1.21161463]
[1747687874838,0.01149153,105350.0,105340.0,1.21161463]
[1747687875018,0.01149144,105350.0,105340.0,1.21161463]
[1747687875441,0.002,105350.0,105340.0,1.21161463]
[1747687875983,0.01149135,105350.0,105340.0,1.21161463]
[1747687876189,0.01149135,105350.0,105340.0,1.23793307]
[1747687877659,0.01149135,105350.0,105340.0,0.85522775]
[1747687878230,0.01149135,105350.0,105340.0,1.26490775]
[1747687878430,0.01149135,105350.0,105340.0,1.28003781]
[1747687879565,0.01149135,105350.0,105340.0,1.62003781]
[1747687879853,0.01149135,105350.0,105340.0,1.63436114]
[1747687880604,0.002,105350.0,105340.0,1.63436114]
[1747687882521,0.002,105350.0,105340.0,1.66073864]
[1747687882936,0.002,105350.0,105340.0,1.41201425]
[1747687883150,0.002,105350.0,105340.0,5.56955325]
[1747687883354,0.002,105350.0,105340.0,5.55442319]
[1747687883573,0.02097928,105370.0,105360.0,0.55829806]
[1747687883772,0.02097928,105370.0,105360.0,5.00498646]
[1747687884809,0.02197928,105370.0,105360.0,5.00498646]
[1747687885060,0.03146919,105370.0,105360.0,4.77560446]
[1747687885300,0.04095928,105370.0,105360.0,4.77560446]
[1747687885525,0.03146919,105370.0,105360.0,4.77560446]
[1747687885951,0.04095919,105370.0,105360.0,4.77560446]
[1747687886380,0.0344691,105370.0,105360.0,4.10893524]
[1747687886619,0.05344919,105370.0,105360.0,4.10893524]
[1747687886857,0.05344919,105370.0,105360.0,3.55068924]
[1747687887085,0.08324991,105370.0,105360.0,3.55068924]
[1747687887307,0.08324991,105370.0,105360.0,2.34625724]
[1747687887514,0.08324991,105370.0,105360.0,1.96452324]
[1747687887722,0.07375964,105370.0,105360.0,1.96452324]
[1747687889092,0.26356698,105370.0,105360.0,1.95503261]
[1747687889299,0.29246698,105370.0,105360.0,1.37791178]
[1747687889472,0.27348743,105370.0,105360.0,1.46043263]
[1747687889701,0.27348743,105370.0,105360.0,1.65025799]
[1747687889851,0.27348743,105370.0,105360.0,1.65974907]
[1747687890075,0.08368009,105370.0,105360.0,1.6787306]
[1747687890413,0.07376072,105370.0,105360.0,1.67873069]
[1747687890650,0.06427036,105370.0,105360.0,1.78553072]
[1747687890880,0.05478009,105370.0,105360.0,1.78553072]
[1747687891116,0.04396072,105370.0,105360.0,1.78553072]
[1747687892779,0.006,105370.0,105360.0,1.78553072]
[1747687892986,0.25795988,105390.0,105380.0,0.35454085]
[1747687893207,0.25810405,105390.0,105380.0,1.51422222]
[1747687893411,0.25810405,105390.0,105380.0,1.51422231]
[1747687893621,0.25810405,105390.0,105380.0,1.50473285]
[1747687893827,0.25810405,105390.0,105380.0,1.70401164]
[1747687894345,0.25810405,105390.0,105380.0,1.69452218]
[1747687894558,0.26310405,105390.0,105380.0,0.78920085]
[1747687894765,0.26710405,105390.0,105380.0,0.80054663]
[1747687895146,0.26710405,105390.0,105380.0,0.99033596]
[1747687895983,0.26710405,105390.0,105380.0,0.99982542]
[1747687897140,0.26710405,105390.0,105380.0,1.02730689]
[1747687899155,0.26710405,105390.0,105380.0,1.01781743]
[1747687900125,0.26710405,105390.0,105380.0,1.02730689]
[1747687901266,0.26710405,105390.0,105380.0,1.01781743]
[1747687901832,0.26710405,105390.0,105380.0,0.47936825]
[1747687902019,0.26710405,105390.0,105380.0,0.56982725]
[1747687907443,0.26710405,105390.0,105380.0,0.56862725]
[1747687911251,0.26710405,105390.0,105380.0,0.75841658]
[1747687912115,0.26710405,105390.0,105380.0,0.56862725]
[1747687912536,0.26710405,105390.0,105380.0,0.75841658]
[1747687912747,0.03012048,105390.0,105380.0,2.88146651]
[1747687912960,0.03012048,105390.0,105380.0,3.00280577]
[1747687912961,0.01114417,105390.0,105380.0,3.00280577]
[1747687913167,0.03011994,105390.0,105380.0,3.0697946]
[1747687913781,0.02611994,105390.0,105380.0,3.04231313]
[1747687913998,0.02611985,105390.0,105380.0,3.04231313]
[1747687914215,0.01863192,105390.0,105380.0,3.04331313]
[1747687914638,0.00914417,105390.0,105380.0,3.03196735]
[1747687915826,0.02312003,105390.0,105380.0,3.03196735]
[1747687916022,0.02612003,105390.0,105380.0,3.03296735]
[1747687916230,0.02612003,105390.0,105380.0,3.00436735]
[1747687916436,0.02612003,105390.0,105380.0,2.67412135]
[1747687917757,0.02612003,105390.0,105380.0,2.68925832]
[1747687919125,0.07549652,105390.0,105380.0,2.68925841]
[1747687919427,0.03560814,105390.0,105380.0,2.83149778]
[1747687920017,0.03560814,105390.0,105380.0,2.50945378]
[1747687920565,0.04509634,105390.0,105380.0,2.50945378]
[1747687921079,0.07559634,105390.0,105380.0,2.50945378]
[1747687921281,0.08508526,105390.0,105380.0,2.32925792]
[1747687921485,0.27716534,105390.0,105380.0,0.68576197]
[1747687921709,0.27479225,105390.0,105380.0,0.82800197]
[1747687921883,0.27479225,105390.0,105380.0,1.02728076]
[1747687922573,0.27479225,105390.0,105380.0,1.0177913]
[1747687922779,0.27479225,105390.0,105380.0,1.02728076]
[1747687923380,0.27479225,105390.0,105380.0,1.04625932]
[1747687923594,0.00714417,105390.0,105380.0,1.15810957]
[1747687923802,0.0166321,105390.0,105380.0,1.1770875]
[1747687924154,0.00714417,105390.0,105380.0,1.2069875]
[1747687924359,0.01663192,105390.0,105380.0,1.2069875]
[1747687924787,0.02611985,105390.0,105380.0,1.2069875]
[1747687924991,0.00714417,105390.0,105380.0,1.2069875]
[1747687925414,0.00714417,105390.0,105380.0,1.23338635]
[1747687925610,0.01663192,105390.0,105380.0,1.23338635]
[1747687926271,0.00714417,105390.0,105380.0,1.23338635]
[1747687926422,0.01663192,105390.0,105380.0,1.23338635]
[1747687928057,0.01663192,105390.0,105380.0,1.21824938]
[1747687929842,0.00714417,105390.0,105380.0,1.24874938]
[1747687931499,0.00414417,105390.0,105380.0,1.24774938]
[1747687931676,0.00214417,105390.0,105380.0,1.24674938]
[1747687931849,0.00214417,105390.0,105380.0,1.24774938]
[1747687932428,0.00214417,105390.0,105380.0,1.24674938]
[1747687932812,0.00314417,105390.0,105380.0,1.24874938]
[1747687933218,0.00414417,105390.0,105380.0,1.24974938]
[1747687934047,0.002,105410.0,105400.0,0.57275607]
[1747687934265,0.01157721,105410.0,105400.0,5.01688447]
[1747687934475,0.01157721,105410.0,105400.0,5.42644447]
[1747687935329,0.01357721,105410.0,105400.0,5.42744447]
[1747687935529,0.00409126,105410.0,105400.0,5.42744447]
[1747687935733,0.00409126,105410.0,105400.0,5.48494447]
[1747687935881,0.00509126,105410.0,105400.0,5.52642928]
[1747687936471,0.00509126,105410.0,105400.0,5.5404907]
[1747687939064,0.00509126,105410.0,105400.0,5.52536886]
[1747687939267,0.00509126,105410.0,105400.0,5.49766886]
[1747687939591,0.00509126,105410.0,105400.0,5.52726886]
[1747687940389,0.00509126,105410.0,105400.0,5.50090589]
[1747687940801,0.00509126,105410.0,105400.0,5.5272385]
[1747687941230,0.00509126,105410.0,105400.0,5.50090589]
[1747687941604,0.00509126,105410.0,105400.0,5.52723613]
[1747687942356,0.00509126,105410.0,105400.0,5.50090589]
[1747687942554,0.00509126,105410.0,105400.0,5.47130589]
[1747687942976,0.00509126,105410.0,105400.0,5.44150589]
[1747687944076,0.00509126,105410.0,105400.0,5.46783068]
[1747687945659,0.09375019,105410.0,105400.0,2.58140522]
[1747687945869,0.09375019,105410.0,105400.0,2.92233225]
[1747687946113,0.09375019,105410.0,105400.0,2.95197385]
[1747687946332,0.0937501,105410.0,105400.0,2.95197385]
[1747687946549,0.08426352,105410.0,105400.0,2.95197385]
[1747687946752,0.09375001,105410.0,105400.0,2.95197385]
[1747687948542,0.09374992,105410.0,105400.0,2.95197385]
[1747687950356,0.08426352,105410.0,105400.0,2.95197385]
[1747687951371,0.08426352,105410.0,105400.0,2.62053385]
[1747687951575,0.10323641,105410.0,105400.0,2.95193385]
[1747687951917,0.09374983,105410.0,105400.0,2.95193385]
[1747687952124,0.10323641,105410.0,105400.0,2.9368331]
[1747687952334,0.10323632,105410.0,105400.0,2.70913067]
[1747687952544,0.0443773,105410.0,105400.0,2.70913067]